Workbook

Sheet Custo por trabalhador (hidden)
A1: PLANILHA DE CUSTOS E FORMAÇÃO DE PREÇOS
A2: MODELO DE FORMAÇÃO DE CUSTO MENSAL PARA UM EMPREGADO
A3: * A planilha de custos e formação de preços é ferramenta de apoio à realização de estimativas da contratação e para a análise das propostas na fase de pregão e nas prorrogações contratuais. * O modelo disponibilizado na Instrução Normativa n° 5, de 26 de maio de 2017, é inspiracional, devendo ser adaptado pelo órgão ou entidade contratante às suas necessidades. * A presente proposta visa, tão somente, auxiliar aos órgão que não possuam um modelo definido na formatação dos cálculos de direitos trabalhistas para estimativas de contratos de prestação de serviços, observando as disposições da Consolidação das Leis do Trabalho - CLT e das Convenções Coletivas de Trabalho - CCT (sendo válidos, ainda, os acordos e dissídios coletivos). * É responsábilidade do usuário que optar pela utilização deste modelo a conferência das fórmulas automatizadas em conformidade com as dispoções de CLT e CCT, para minimizar o risco de equívocos no cômputo das previsões financeiras. * Dúvidas sobre a metodologia de cálculo poderão ser esclarecidas com a leitura dos Cadernos Técnicos de divulgação de valores limites em: https://www.comprasgovernamentais.gov.br/index.php/cadernos-tecnicos-e-valores-limites.
A5: MÓDULO 1 - REMUNERAÇÃO
A6: * A remuneração é definida no art. 457 da Consolidação das Leis do Trabalho. * É composta por Salário Base, Adicionais (noturno, de insalubridade ou periculosidade) e gratificações, quando houver.
A8: SALÁRIO BASE
A9: * O Salário Base vem definido na Convenção Coletiva de Trabalho da categoria profissional a ser contratada para o objeto da prestação de serviço. * O contratante deverá observar se a CCT abrange o município de prestação de serviço e se está vigente.
A11: SALÁRIO BASE
A12: Motorista | B12: 2008.63
A13: Cargo B
A15: GRATIFICAÇÃO DE FUNÇÃO
A16: * Gratificação de função, quando houver, virá informada na Convenção Coletiva de Trabalho da categoria profissional a ser contratada. * O órgão contrantante deverá observar, além da existência de gratificação, se esta incidirá sobre os adicionais, devendo adaptar a planilha ao caso em concreto. * Para o presente modelo foi considerada gratificação como percentual sobre o salário base e sem incidência sobre os adicionais (noturno, periculosidade ou insalubridade).
A18: GRATIFICAÇÃO DE FUNÇÃO
A19: Categoria | B19: Base de cálculo | C19: Percentual | D19: Valor da Gratificação
A20: Motorista | B20: =B12 -> 2008.63 | D20: =B20*C20 -> 0
A21: Cargo B | B21: =B13 -> 0 | D21: =B21*C21 -> 0
A23: ADICIONAIS (periculosidade ou insalubridade, se houver)
A24: * Os adicionais de periculosidade ou insalubridade, em conformidade com os art. 192 e 193 da CLT, dependem da natureza do serviço a ser prestado. * O órgão contrantante deverá observar, além da existência de previsão em CLT, se há informações na Convenção Coletiva de Trabalho acerca dos adicionais, bem como seu percentual e a base de cálculo, devendo adaptar a planilha ao caso em concreto.
A26: ADICIONAL DE XXX
A27: Categoria | B27: Base de cálculo | C27: Percentual | D27: Valor
A28: Cargo A (12x36 Diurno) | D28: =B28*C28 -> 0
A29: Cargo A (12x36 Noturno) | C29: =C28 -> 0 | D29: 0
A30: Cargo A Cargo A (44h semanais) | C30: =C29 -> 0 | D30: 0
A31: Cargo B (12x36 Diurno) | C31: =C30 -> 0 | D31: 0
A32: Cargo B (12x36 Noturno) | C32: =C31 -> 0 | D32: 0
A33: Cargo B (44h semanais) | C33: =C32 -> 0 | D33: 0
A36: ADICIONAL NOTURNO
A37: * O Adicional Noturno e a Hora Noturna Reduzida, conforme art. 73 da CLT, serão pagos entre 22h e 5h do dia seguinte, sem prorrogação quando da jornada 12x36h. * O órgão contrantante deverá observar, além da existência do previsto em CLT, se há informações na Convenção Coletiva de Trabalho acerca da existência do percentual de adicional noturno, bem como se haverá pagamento de hora noturna reduzida e adaptar a planilha ao caso em concreto.
A39: ADICIONAL NOTURNO
A40: Categoria | B40: Base de Cálculo | C40: Proporção | D40: Percentual | E40: Valor
A41: Cargo A (12x36 Noturno) | B41: =B12+D29 -> 2008.63 | C41: =7/12 -> 0.5833333333 | E41: =B41*C41*D41 -> 0
A42: Cargo B (12x36 Noturno) | B42: =B13+D32 -> 0 | C42: =7/12 -> 0.5833333333 | D42: =D41 -> 0 | E42: =B42*C42*D42 -> 0
A43: HORA NOTURNA REDUZIDA
A44: Categoria | B44: Base de Cálculo | C44: Proporção | D44: Percentual | E44: Valor
A45: Cargo A (12x36 Noturno) | C45: =1/12 -> 0.08333333333 | D45: =1+D41 -> 1 | E45: =B45*C45*D45 -> 0
A46: Cargo B (12x36 Noturno) | B46: =B13+D32 -> 0 | C46: =1/12 -> 0.08333333333 | D46: =1+D42 -> 1 | E46: =B46*C46*D46 -> 0
A48: ADICIONAL POR TRABALHO NOTURNO
A49: Categoria | B49: Adicional Noturno | C49: Hora Noturna Reduzida | D49: Valor
A50: Cargo A (12x36 Noturno) | B50: =E41 -> 0 | C50: 0 | D50: =SUM(B50:C50) -> 0
A51: Cargo B (12x36 Noturno) | B51: =E42 -> 0 | C51: =E46 -> 0 | D51: =SUM(B51:C51) -> 0
A53: ADICIONAL XXX
A54: * Em caso de previsão de outros adicionais em Convenção Coletiva de Trabalho o órgão poderá utilizar este campo.
A56: ADICIONAL XXX
A57: Categoria | B57: Base de cálculo | C57: Percentual | D57: Valor
A58: Cargo A (12x36 Diurno)
A59: Cargo A (12x36 Noturno)
A60: Cargo A (44h semanais)
A61: Cargo B (12x36 Diurno)
A62: Cargo B (12x36 Noturno)
A63: Cargo B (44h semanais)
A65: MÓDULO 1 - REMUNERAÇÃO
A66: Este quadro totaliza a remuneração devida ao trabalhador, conforme previsão da Consolidação das Leis do Trabalho e valores disponíveis na Convenção Coletiva para a categoria
A68: MÓDULO 1 - REMUNERAÇÃO
A69: Categoria | B69: Salário Base | C69: Gratificação de função | D69: Adicional de Periculosidade ou Insalubridade | E69: Adicional Noturno | F69: Adicional XXX | G69: Total
A70: Motorista (44h semanais) | B70: =B12 -> 2008.63 | C70: =D20 -> 0 | D70: =D30 -> 0 | F70: =D60 -> 0 | G70: =SUM(B70:F70) -> 2008.63
A72: MÓDULO 2 - ENCARGOS E BENEFÍCIOS (ANUAIS, MENSAIS E DIÁRIOS)
A74: SUBMÓDULO 2.1 – 13° SALÁRIO, FÉRIAS E ADICIONAL DE FÉRIAS
A76: 13° SALÁRIO Previsto no Decreto 57.155, de 1965.
A77: Categoria | B77: Base de cálculo | C77: Provisionamento Mensal | D77: Valor
A78: Motorista (44h semanais) | B78: =G70 -> 2008.63 | C78: =1/12 -> 0.08333333333 | D78: =B78*C78 -> 167.3858333
A80: FÉRIAS Previsto no art. 7° da Constituição Federal
A81: Categoria | B81: Base de cálculo | C81: Provisionamento Mensal | D81: Valor
A82: Motorista (44h semanais) | B82: =G70 -> 2008.63 | C82: =1/12 -> 0.08333333333 | D82: =B82*C82 -> 167.3858333
A84: ADICIONAL DE FÉRIAS - 1/3 CONSTITUCIONAL
A85: Categoria | B85: Base de cálculo | C85: Alíquota Adicional | D85: Provisionamento Mensal | E85: Valor
A86: Motorista (44h semanais) | B86: =G70 -> 2008.63 | C86: =1/3 -> 0.3333333333 | D86: =1/12 -> 0.08333333333 | E86: =B86*C86*D86 -> 55.79527778
A88: SUBMÓDULO 2.1 – 13° SALÁRIO, FÉRIAS E ADICIONAL DE FÉRIAS
A89: Categoria | B89: 13° Salário | C89: Férias | D89: 1/3 Constitucional | E89: Total
A90: Motorista (44h semanais) | B90: =D78 -> 167.3858333 | C90: =D82 -> 167.3858333 | D90: =E86 -> 55.79527778 | E90: =SUM(B90:D90) -> 390.5669444
A92: SUBMÓDULO 2.2 - ENCARGOS PREVIDENCIÁRIOS E FGTS
A93: * Previsto no art. 195 da Constituição Federal. * Os percentuais informados não são taxativos e deverão observar o enquadramento real das empresas prestadoras de serviço, em especial no que diz respeito ao SAT-GIIL/RAT.
A95: COMPOSIÇÃO DO GPS E FGTS
A96: Encargos | B96: Percentual
A97: INSS - empregador | B97: 0.2
A98: Salário-Educação | B98: 0.025
A99: SAT- GIL/RAT | B99: 0.015 | C99: RAT = 3,0 x FAP = 0,500/ IN 2110/2022
A100: SESC | B100: 0.015
A101: SENAC | B101: 0.01
A102: SEBRAE | B102: 0.006
A103: INCRA | B103: 0.002
A104: FGTS | B104: 0.08
A105: TOTAL | B105: =SUM(B97:B104) -> 0.353
A107: GPS - GUIA DA PREVIDÊNCIA SOCIAL
A108: Categoria | B108: Base de cálculo | C108: Percentual | D108: Valor
A109: Motorista (44h semanais) | B109: =G70+E90 -> 2399.196944 | C109: =SUM($B$97:$B$103) -> 0.273 | D109: =B109*C109 -> 654.9807658
A111: FGTS - FUNDO DE GARANTIA POR TEMPO DE SERVIÇO
A112: Categoria | B112: Base de cálculo | C112: Percentual | D112: Valor
A113: Motorista (44h semanais) | B113: =G70+E90 -> 2399.196944 | C113: =$B$104 -> 0.08 | D113: =B113*C113 -> 191.9357556
A115: SUBMÓDULO 2.2 - ENCARGOS PREVIDENCIÁRIOS E FGTS
A116: Categoria | B116: GPS | C116: FGTS | D116: Total
A117: Motorista (44h semanais) | B117: =D109 -> 654.9807658 | C117: =D113 -> 191.9357556 | D117: =B117+C117 -> 846.9165214
A119: SUBMÓDULO 2.3 - BENEFÍCIOS MENSAIS E DIÁRIOS
A120: * O cálculo de benefícios mensais e diários dependerá das disposições constantes em Convenção Coletiva de Trabalho sobre os direitos negociados aos trabalhadores, observando sempre o custo efetivo a ser suportado pela Administração no contrato de prestação de serviços (descontados os valores arcados pelos empregados).
A122: VALE TRANSPORTE
A124: CUSTO DA PASSAGEM
A125: Categoria | B125: Vr. Unitário | C125: Vales por dia | D125: Dias efetivamente trabalhados | E125: Custo total
A126: Motorista (44h semanais) | B126: 3.7 | C126: 2 | D126: 22 | E126: =B126*C126*D126 -> 162.8
A128: DESCONTO DO VALE TRANSPORTE
A129: Categoria | B129: Base de cálculo | C129: Proporcionalidade | D129: Percentual | E129: Desconto
A130: Motorista (44h semanais) | B130: =B12 -> 2008.63 | C130: 1 | D130: 0.06 | E130: =B130*C130*D130 -> 120.5178
A132: CUSTO EFETIVO DO VALE TRANSPORTE
A133: Categoria | B133: Custo total | C133: Valor do desconto | D133: Custo efetivo
A134: Motorista (44h semanais) | B134: =E126 -> 162.8 | C134: =E130 -> 120.5178 | D134: =B134-C134 -> 42.2822
A136: VALE ALIMENTAÇÃO/REFEIÇÃO
A138: VALE ALIMENTAÇÃO/REFEIÇÃO
A139: Categoria | B139: Valor diário | C139: Dias efetivamente trabalhados | D139: Valor
A140: Motorista (44h semanais) | B140: 22.5 | C140: =D126 -> 22 | D140: =B140*C140 -> 495
A142: DESCONTO DO VALE ALIMENTAÇÃO/REFEIÇÃO
A143: Categoria | B143: Base de cálculo | C143: Percentual | D143: Desconto | E143: Parágrafo Sexto CCT – É vedado lançar na planilha de custo e formação de preços, por ocasião de licitações e contratações diretas, a dedução do percentual de 15% (quinze por cento) do que trata o parágrafo terceiro desta cláusula.
A144: Motorista (44h semanais) | B144: =D140 -> 495 | C144: 0 | D144: =B144*C144 -> 0
A146: CUSTO EFETIVO DO VALE ALIMENTAÇÃO/REFEIÇÃO
A147: Categoria | B147: Custo total | C147: Desconto | D147: Custo efetivo
A148: Motorista (44h semanais) | B148: =D140 -> 495 | C148: =D144 -> 0 | D148: =B148-C148 -> 495
A150: BENEFÍCIO XXX Utilizar este campo em caso de outros benefícios previstos em Convenção Coletiva, sempre especificando o tipo, finalidade e previsão legal do mesmo.
A152: BENEFÍCIO AUXÍLIO FUNERAL
A153: Categoria | D153: VALOR MENSAL
A154: Motorista (44h semanais) | D154: 19.8
A156: BENEFÍCIO YYY Utilizar este campo em caso de outros benefícios previstos em Convenção Coletiva, sempre especificando o tipo, finalidade e previsão legal do mesmo.
A158: BENEFÍCIO yyy
A159: Categoria
A160: Cargo A (12x36 Diurno)
A161: Cargo A (12x36 Noturno)
A162: Cargo A (44h semanais)
A163: Cargo B (12x36 Diurno)
A164: Cargo B (12x36 Noturno)
A165: Cargo B (44h semanais)
A167: SUBMÓDULO 2.3 - BENEFÍCIOS MENSAIS E DIÁRIOS
A168: Categoria | B168: Vale Transporte | C168: Vale Refeição | D168: Auxílio funeral | E168: Benefício y | F168: Total
A169: Motorista (44h semanais) | B169: =D134 -> 42.2822 | C169: =D148 -> 495 | D169: =D154 -> 19.8 | E169: =D162 -> 0 | F169: =SUM(B169:E169) -> 557.0822
A171: MÓDULO 2 - ENCARGOS E BENEFÍCIOS (ANUAIS, MENSAIS E DIÁRIOS)
A173: MÓDULO 2 - ENCARGOS E BENEFÍCIOS (ANUAIS, MENSAIS E DIÁRIOS)
A174: Categoria | B174: Submódulo 2.1 | C174: Submódulo 2.2 | D174: Submódulo 2.3 | E174: Total
A175: Motorista (44h semanais) | B175: =E90 -> 390.5669444 | C175: =D117 -> 846.9165214 | D175: =F169 -> 557.0822 | E175: =SUM(B175:D175) -> 1794.565666
A177: MÓDULO 3 - PROVISÃO PARA RESCISÃO
A178: * Este módulo destina-se a calcular o custo de possível desligamento de um empregado vinculado ao contrato de prestação de seviços. * Na metodologia Seges calcula-se uma probabilidade de ocorrência, por tipos de desligamentos, como fator de ponderação do custo total.
A180: PERCENTUAIS POR TIPO DE DESLIGAMENTO
A181: Tipos | B181: Percentual
A182: Demissão SEM justa Causa
A183: SEM justa Causa AP INDENIZADO | B183: 0.45
A184: SEM justa Causa AP TRABALHADO | B184: 0.55
A185: Demissão COM justa Causa
A186: Desligamentos OUTROS TIPOS
A187: TOTAL | B187: =SUM(B183:B186) -> 1
A189: SUBMÓDULO 3.1 - AVISO PRÉVIO INDENIZADO
A190: * Quando ocorrer a demissão de uma trabalhador e a empresa não conceder prazo de aviso prévio, o trabalhador terá direito a receber o salário referente ao mês completo, conforme dispõe o art. 487 § 1º da CLT. * A metodologia utilizada pela Seges computa todos os direitos do trabalhador, aplicando a proporcionalidade estimada de ocorrência de aviso prévio indenizado, relizando provisionamento mensal do custo. * Estes custos deverão ser apreciados atentamente nos casos de prorrogaçao contratual para verificar a necessidade de sua renovação ou não. * Deverão, ainda, ser obsrvados os ditames da Lei nº 12.506, de 2011 e seus impactos no custo quando das prorrogações contratuais.
A192: AVISO PRÉVIO INDENIZADO
A193: Categoria | B193: Base de cálculo | C193: Provisionamento Mensal | D193: Valor
A194: Cargo A (44h semanais) | B194: =G70+(E175-D109) -> 3148.2149 | C194: 12 | D194: =B194/C194 -> 262.3512417
A196: MULTA DO FGTS E CONTRIBUIÇÃO SOCIAL SOBRE O AVISO PRÉVIO INDENIZADO
A197: Categoria | B197: Base de cálculo | C197: Percentual da Multa | D197: Valor
A198: Cargo A (44h semanais) | B198: =D113 -> 191.9357556 | C198: 0.5 | D198: =B198*C198 -> 95.96787778
A200: SUBMÓDULO 3.1 - CUSTO DO AVISO PRÉVIO INDENIZADO
A201: Categoria | B201: Base de cálculo | C201: Percentual | D201: Valor
A202: Cargo A (44h semanais) | B202: =D194+D198 -> 358.3191194 | C202: =$B$183 -> 0.45 | D202: =B202*C202 -> 161.2436038
A204: SUBMÓDULO 3.2 - AVISO PRÉVIO TRABALHADO
A205: * Quando ocorrer a demissão de um trabalhador com aviso prévio, o trabalhador cumprirá os dias em atividade, e terá direito a receber o salário referente ao mês completo, conforme dispõe o art. 487 § 1º da CLT. * A metodologia utilizada pela Seges computa todos os direitos do trabalhador, aplicando a proporcionalidade estimada de ocorrência de aviso prévio trabalhado, relizando provisionamento mensal do custo. * Estes custos deverão ser apreciados atentamente nos casos de prorrogaçao contratual para verificar a necessidade de sua renovação ou não. * Deverão, ainda, ser observados os ditames da Lei nº 12.506, de 2011, e seus impactos no custo quando das prorrogações contratuais.
A207: AVISO PRÉVIO TRABALHADO
A208: Categoria | B208: Base de cálculo | C208: Provisionamento Mensal | D208: Valor
A209: Cargo A (44h semanais) | B209: =G70+E175 -> 3803.195666 | C209: 12 | D209: =B209/C209 -> 316.9329722
A211: MULTA DO FGTS E CONTRIBUIÇÃO SOCIAL SOBRE O AVISO PRÉVIO TRABALHADO
A212: Categoria | B212: Base de cálculo | C212: Percentual da Multa | D212: Valor
A213: Cargo A (44h semanais) | B213: =D113 -> 191.9357556 | C213: 0.5 | D213: =B213*C213 -> 95.96787778
A215: SUBMÓDULO 3.2 - CUSTO DO AVISO PRÉVIO TRABALHADO
A216: Categoria | B216: Base de cálculo | C216: Percentual | D216: Valor
A217: Cargo A (44h semanais) | B217: =D209+D213 -> 412.9008499 | C217: =$B$184 -> 0.55 | D217: =B217*C217 -> 227.0954675
A219: SUBMÓDULO 3.3 - DEMISSÃO POR JUSTA CAUSA
A220: *Na hipotese de demissão por justa causa o empregado perde o direito ao pagamento de 13° salário, férias e adicional de férias, como previsto no parágrafo único do art. 146 da CLT. * Para estes casos, na metodologia Seges, haverá o desconto dos valores que, por tratar-se de provisão mensal, deverão ser reduzidos da fatura da empresa contratada. * Igualmente, o cômputo de custos com demissão por justa causa considera a probabilidade de ocorrência desta para provisionamento.
A222: BASE DE CÁLCULO PARA DEMISSÃO POR JUSTA CAUSA
A223: Categoria | B223: Valor provisionado do 13º Salário | C223: Valor provisionado das Férias | D223: Valor provisionado do Adicional de Férias | E223: Valor
A224: Cargo A (44h semanais) | B224: =-D78 -> -167.3858333 | C224: =-D82 -> -167.3858333 | D224: =-E86 -> -55.79527778 | E224: =SUM(B224:D224) -> -390.5669444
A226: SUBMÓDULO 3.3 - CUSTO DA DEMISSÃO COM JUSTA CAUSA
A227: Categoria | B227: Base de Cálculo | C227: Percentual | D227: Valor
A228: Cargo A (44h semanais) | B228: =E224 -> -390.5669444 | C228: =$B$185 -> 0 | D228: =B228*C228 -> 0
A230: MÓDULO 3 - PROVISÃO PARA RESCISÃO
A232: MÓDULO 3 - PROVISÃO PARA RESCISÃO
A233: Categoria | B233: Submódulo 3.1 | C233: Submódulo 3.2 | D233: Submódulo 3.3 | E233: Total
A234: Cargo A (44h semanais) | B234: =D202 -> 161.2436038 | C234: =D217 -> 227.0954675 | D234: =D228 -> 0 | E234: =SUM(B234:D234) -> 388.3390712
A236: MÓDULO 4 - CUSTO DE REPOSIÇÃO DO PROFISSIONAL AUSENTE
A237: * O Custo de reposição do profissional ausente refere-se ao custo necessário para substituir, no posto de trabalho, o profissional residente quando estiver em gozo de férias ou no caso de um das ausências legais previstas no art 473 da Consolidação das Leis do Trabalho. * Na metodologia Seges utiliza-se uma probabilidade de ocorrência, mediante estatísticas da Relação Anual de Informações Sociais-2016 (RAIS/MTE), da Pesquisa Nacional por Amostra de Domicílios-2016 (PNAD/IBGE), do Registro Civil (IBGE)-2016. * São computados, então, a probabilidade de dias de ausência para cobertura, conforme escala de trabalho mensal. * Para jornadas jornadas 12x36h a necessidade de reposição incide somente em 50% do dias de ausência devido à escala. * Na jornada 44h computa-se somente a reposição nos dias úteis, portanto, 69,04% da ausência total.
A239: Porobabilidade de ocorrência de ausências legais, conforme previsão do art. 473 da Consolidação das Leis do Trabalho.
A240: Memória de Cálculo - número de dias de reposição do profissional ausente para cada evento
A241: Categoria | B241: Incidencia anual | C241: Duração Legal da Ausência | D241: 12x36 | F241: 44h
D242: Proporção dias afetados | E242: Dias de reposição | F242: Proporção dias afetados | G242: Dias de reposição
A243: Férias | B243: 1 | C243: 30 | D243: 0.5 | E243: =(B243*C243)*D243 -> 15 | F243: =(252/365) -> 0.6904109589 | G243: =(B243*C243)*F243 -> 20.71232877
A244: Ausência justificada | B244: 1 | C244: 1 | D244: 1 | E244: 1 | F244: 1 | G244: 1
A245: Acidente trabalho | C245: 15 | D245: 0.5 | E245: 0 | F245: =(252/365) -> 0.6904109589 | G245: 0
A246: Afastamento por doença | C246: 5 | D246: 0.5 | E246: 0 | F246: =(252/365) -> 0.6904109589 | G246: 0
A247: Consulta médica filho | C247: 2 | D247: 1 | E247: 0 | F247: 1 | G247: 0
A248: Óbitos na família | C248: 2 | D248: 0.5 | E248: 0 | F248: =(252/365) -> 0.6904109589 | G248: 0
A249: Casamento | C249: 3 | D249: 0.5 | E249: 0 | F249: 1 | G249: 0
A250: Doação de sangue | C250: 1 | D250: 1 | E250: 0 | F250: 1 | G250: 0
A251: Testemunho | C251: 1 | D251: 1 | E251: 0 | F251: 1 | G251: 0
A252: Paternidade | C252: 20 | D252: 0.5 | E252: 0 | F252: =(252/365) -> 0.6904109589 | G252: 0
A253: Maternidade | C253: 180 | D253: 0.5 | E253: 0 | F253: =(252/365) -> 0.6904109589 | G253: 0
A254: Consulta pré-natal | C254: 6 | D254: 1 | E254: 0 | F254: 1 | G254: 0
A256: ESTIMATIVA DA NECESSIDADE DE REPOSIÇÃO DE PROFISSIONAL
A257: Composição | B257: ESCALAS - Cargo A
B258: 12 x 36 D | C258: 12 x 36 N | D258: 44 SEM
A259: Férias | B259: =E243 -> 15 | C259: =E243 -> 15 | D259: =G243 -> 20.71232877
A260: Ausência justificada | B260: 1 | C260: 1 | D260: 1
... 117 more rows

Sheet Planilha de Custos
B2: PLANILHA DE CUSTOS E FORMAÇÃO DE PREÇOS
B4: Nº do Processo: 59513.000252/2024
B6: Discriminação dos Serviços
B7: A | C7: Data de apresentação da proposta
B8: B | C8: Município | D8: Macapá/AP
B9: C | C9: Ano do Acordo, Convenção ou Dissídio Coletivo | D9: AP000008/2024
B10: D | C10: Nº de meses de execução contratual | D10: 12
B12: Identificação do Serviço
B13: A | C13: Tipo de serviço | D13: Auxiliar Administrativo II
B14: B | C14: Unidade de medida | D14: Posto de serviço
B15: C | C15: Quantidade a contratar | D15: 10
B17: Dados complementares para composição dos custos referente à mão de obra
B18: A | C18: Salário normativo da categoria profissional (Claúsula 3ª da CCT 2024/2024) | D18: 2066.55
B19: B | C19: Categoria profissional (vinculada à execução contratual) | D19: Auxiliar Administrativo II
B21: Módulo 1 - Composição da Remuneração
B23: 1 | C23: Composição da Remuneração | D23: Valor (R$)
B24: A | C24: Salário-Base (Jornada Reduzida) | D24: 1878.69
B25: B | C25: Adicional de Periculosidade
B26: C | C26: Adicional de Insalubridade
B27: D | C27: Adicional Noturno
B28: E | C28: Adicional de Hora Noturna Reduzida
B29: G | C29: Outros (especificar)
B30: Total | D30: =D24 -> 1878.69
B33: Módulo 2 - Encargos e Benefícios Anuais, Mensais e Diários
B35: Submódulo 2.1 - 13º (décimo terceiro) Salário, Férias e Adicional de Férias
B37: 2.1 | C37: 13º (décimo terceiro) Salário, Férias e Adicional de Férias | D37: Valor (R$)
B38: A | C38: 13º (décimo terceiro) Salário | D38: =D30/12 -> 156.5575
B39: B | C39: Férias e Adicional de Férias | D39: =D38+D38/3 -> 208.7433333
B40: Total | D40: =D38+D39 -> 365.3008333
B43: Submódulo 2.2 - Encargos Previdenciários (GPS), Fundo de Garantia por Tempo de Serviço (FGTS) e outras contribuições.
B45: 2.2 | C45: GPS, FGTS e outras contribuições | D45: Percentual (%) | E45: Valor (R$)
B46: A | C46: INSS | D46: 0.2 | E46: =($D$30+$D$40)*D46 -> 448.7981667
B47: B | C47: Salário Educação | D47: 0.025 | E47: =($D$30+$D$40)*D47 -> 56.09977083
B48: C | C48: SAT (RAT = 2,00 x FAP = 1,000) | D48: 0.02 | E48: =($D$30+$D$40)*D48 -> 44.87981667
B49: D | C49: SESC ou SESI | D49: 0.015 | E49: 33.6598625
B50: E | C50: SENAI - SENAC | D50: 0.01 | E50: 22.43990833
B51: F | C51: SEBRAE | D51: 0.006 | E51: 13.463945
B52: G | C52: INCRA | D52: 0.002 | E52: 4.487981667
B53: H | C53: FGTS | D53: 0.08 | E53: 179.5192667
B54: Total | D54: =SUM(D46:D53) -> 0.358 | E54: =SUM(E46:E53) -> 803.3487183
B57: Submódulo 2.3 - Benefícios Mensais e Diários.
B59: 2.3 | C59: Benefícios Mensais e Diários | D59: Valor (R$)
B60: A | C60: Transporte | D60: =(3.7*2*20)-D30*0.06 -> 35.2786
B61: B | C61: Auxílio-Refeição/Alimentação | D61: =25*22 -> 550
B62: D | C62: Outros (especificar)
B63: Total | D63: =SUM(D60:D62) -> 585.2786
B66: Quadro-Resumo do Módulo 2 - Encargos e Benefícios anuais, mensais e diários
B68: 2 | C68: Encargos e Benefícios Anuais, Mensais e Diários | D68: Valor (R$)
B69: 2.1 | C69: 13º (décimo terceiro) Salário, Férias e Adicional de Férias | D69: =D40 -> 365.3008333
B70: 2.2 | C70: GPS, FGTS e outras contribuições | D70: =E54 -> 803.3487183
B71: 2.3 | C71: Benefícios Mensais e Diários | D71: =D63 -> 585.2786
B72: Total | D72: =SUM(D69:D71) -> 1753.928152
B75: Módulo 3 - Provisão para Rescisão
B77: 3 | C77: Provisão para Rescisão | D77: Valor (R$)
B78: A | C78: Aviso Prévio Indenizado | D78: =0.417%*$D$30*(1+8.33%+11.11%) -> 9.357093591
B79: B | C79: Incidência do FGTS sobre o Aviso Prévio Indenizado | D79: =0.033%*$D$30*(1+8.33%+11.11%) -> 0.7404894209
B80: C | C80: Multa do FGTS e contribuição social sobre o Aviso Prévio Indenizado | D80: =0.16%*$D$30*(1+8.33%+11.11%) -> 3.590251738
B81: D | C81: Aviso Prévio Trabalhado | D81: =1.944%*$D$30*(1+8.33%+11.11%) -> 43.62155861
B82: E | C82: Incidência dos encargos do submódulo 2.2 sobre o Aviso Prévio Trabalhado | D82: =0.686%*$D$30*(1+8.33%+11.11%) -> 15.39320432
B83: F | C83: Multa do FGTS e contribuição social sobre o Aviso Prévio Trabalhado | D83: =3.2%*$D$30*(1+8.33%+11.11%) -> 71.80503475
B84: Total | D84: =SUM(D78:D83) -> 144.5076324
B87: Módulo 4 - Custo de Reposição do Profissional Ausente
B88: Base de Cálculo do Custo do Substituto - Módulos 1 + 2 + Férias - Auxílios (V. Transporte e Alimentação)
B89: Módulo 1 - Remuneração | D89: =D30 -> 1878.69
B90: Módulo 2 - Encargos e Benefícios | D90: =D72 -> 1753.928152
B91: Desconto Auxílios | D91: =-(D60+D61) -> -585.2786
B92: Módulo 3 - Provisão para Recisão | D92: =D84 -> 144.5076324
B93: BCCS | D93: =SUM(D89:D92) -> 3191.847184
B95: Submódulo 4.1 - Ausências Legais
B97: 4.1 | C97: Ausências Legais | D97: Valor (R$)
B98: A | C98: Férias (0,926% BCCS) | D98: =0.926%*$D$93 -> 29.55650492
B99: B | C99: Ausências Legais (8 faltas/ano (8 dia/30 dias) x (1/12 meses) = 0,0222 = 2,22%) | D99: =0.415%*$D$93 -> 13.24616581
B100: C | C100: Licença-Paternidade ((5 dias/30dias) x (1/12 meses) x 6,24% taxa de fecundidade x 95,04% participação masculina = 0,0008 = 0,08%) | D100: =0.02%*$D$93 -> 0.6383694368
B101: D | C101: Ausência por acidente de trabalho ((0,91 dias / 30 dias)x(1/12 meses) = 0,0027 = 0,27%) | D101: =0.051%*$D$93 -> 1.627842064
B102: E | C102: Ausência por doença (5,96 dias/ano IBGE. (5,96 dias/30 dias) x (1/12 meses) = 0,0166 = 1,66%) | D102: =0.11%*$D$93 -> 3.511031903
B103: F | C103: Afastamento maternidade {[(120/30)/12] x 1,416% x 54,78% x 36,80%} x 100= 0,095% | D103: =0.039%*$D$93 -> 1.244820402
B104: Total | D104: =SUM(D98:D103) -> 49.82473454
B105: G | C105: Incidência dos encargos do submódulo 2.2 sobre o custo de reposição do profissional ausente | D105: =D104*36.8% -> 18.33550231
B106: Total | D106: =D104+D105 -> 68.16023686
B109: Submódulo 4.2 - Intrajornada
B111: 4.2 | C111: Intrajornada | D111: Valor (R$)
B112: A | C112: Intervalo para repouso e alimentação | D112: 0
B113: Total
B116: Quadro-Resumo do Módulo 4 - Custo de Reposição do Profissional Ausente
B118: 4 | C118: Custo de Reposição do Profissional Ausente | D118: Valor (R$)
B119: 4.1 | C119: Ausências Legais | D119: =D106 -> 68.16023686
B120: 4.2 | C120: Intrajornada | D120: 0
B121: Total | D121: =D119+D120 -> 68.16023686
B124: Módulo 5 - Insumos Diversos
B126: 5 | C126: Insumos Diversos | D126: Valor (R$)
B127: A | C127: Uniformes | D127: =Uniformes!J10 -> 60.62930556
B128: B | C128: Equipamentos | D128: =Uniformes!J18 -> 24.69302222
B129: C | C129: Outros (Cláus. 42, páragrafo único ACT - despesas relacionadas à segurança e medicina do trabalho) | D129: 40
B130: Total | D130: =SUM(D127:D129) -> 125.3223278
B133: Módulo 6 - Custos Indiretos, Tributos e Lucro
B135: 6 | C135: Custos Indiretos, Tributos e Lucro | D135: Percentual (%) | E135: Valor (R$)
B136: A | C136: Custos Indiretos | D136: 5 | E136: =D157*D136% -> 198.5304174
B137: B | C137: Lucro | D137: 10 | E137: =(D157+E136)*D137% -> 416.9138766
B138: C | C138: Tributos (Coeficiente: (1 - (% tributos) ): 1 - 0,0865 = 0,9135) | D138: 0.1425 | E138: =($D$157+$E$136+$E$137)/(1-D138)*D138 -> 762.1137045
C139: Cálculo do tributo: (Base de Cálculo) / 0,9135 x Alíquota
C140: C.1. Tributos Federais (especificar)
C141: PIS | D141: 1.65 | E141: =($D$157+$E$136+$E$137)/0.9135*D141% -> 82.83510521
C142: COFINS | D142: 7.6 | E142: =($D$157+$E$136+$E$137)/0.9135*D142% -> 381.5435149
C143: C.2. Tributos Estaduais (especificar)
C144: C.3. Tributos Municipais (especificar)
C145: ISS | D145: 5 | E145: =($D$157+$E$136+$E$137)/0.9135*D145% -> 251.0154703
B146: Total | E146: =SUM(E136:E138) -> 1377.557999
B149: 2. QUADRO-RESUMO DO CUSTO POR EMPREGADO
C151: Mão de obra vinculada à execução contratual (valor por empregado) | D151: Valor (R$)
B152: A | C152: Módulo 1 - Composição da Remuneração | D152: =D30 -> 1878.69
B153: B | C153: Módulo 2 - Encargos e Benefícios Anuais, Mensais e Diários | D153: =D72 -> 1753.928152
B154: C | C154: Módulo 3 - Provisão para Rescisão | D154: =D84 -> 144.5076324
B155: D | C155: Módulo 4 - Custo de Reposição do Profissional Ausente | D155: =D121 -> 68.16023686
B156: E | C156: Módulo 5 - Insumos Diversos | D156: =D130 -> 125.3223278
B157: Subtotal (A + B +C+ D+E) | D157: =SUM(D152:D156) -> 3970.608349
B158: F | C158: Módulo 6 – Custos Indiretos, Tributos e Lucro | D158: =E146 -> 1377.557999
B159: Valor Total por Empregado/mês | D159: =D157+D158 -> 5348.166347
B160: Valor Total por Empregado/Ano | D160: =D159*12 -> 64177.99617
B161: Valor Total 10 Empregado/Ano | D161: =D160*10 -> 641779.9617

Sheet Uniformes
B2: UNIFORME | L2: Descontos Salariais - Cláusula Sexta do ACT
B3: Item | C3: Descrição/Especificação | D3: QTD ANUAL | E3: Orçamento 1 | F3: Orçamento 2 | G3: Orçamento 3 | H3: Orçamento 4 | I3: Média | J3: Valor/ano | L3: Salário base da função | M3: Valor da hora | N3: Jornada reduzida | O3: Salário da Jornada Reduzida
B4: 1 | C4: Camisa social manga curta | D4: 4 | E4: 69.7 | F4: 69.7 | G4: 68.3 | H4: 46.89 | I4: =AVERAGE(E4:H4) -> 63.6475 | J4: =I4*D4 -> 254.59 | L4: 2066.55 | M4: =L4/220 -> 9.393409091 | N4: =(40/6)*30 -> 200 | O4: =M4*N4 -> 1878.681818
B5: 2 | C5: Calça social | D5: 4 | E5: 69.9 | F5: 74.79 | G5: 68.99 | H5: 69.7 | I5: =AVERAGE(E5:H5) -> 70.845 | J5: =I5*D5 -> 283.38
B6: 3 | C6: Sapato | D6: 2 | E6: 62.99 | F6: 59.9 | G6: 74.99 | H6: 56.69 | I6: 63.6425 | J6: 127.285
B7: 4 | C7: Meia social | D7: 4 | E7: 16.9 | F7: 10.8 | G7: 9.7 | H7: - | I7: 12.46666667 | J7: 49.86666667
B8: 5 | C8: Cracha | D8: 1 | E8: 7.5 | F8: 16.99 | G8: 12.8 | H8: - | I8: 12.43 | J8: 12.43
I9: Total/ano | J9: =SUM(J4:J8) -> 727.5516667
I10: Total/mês | J10: =J9/12 -> 60.62930556
B12: EQUIPAMENTOS
B13: Item | C13: Descrição | D13: Quantidade | E13: Orçamento 1 | F13: Orçamento 2 | G13: Orçamento 3 | H13: Média | I13: Valor a depreciar (80%) | J13: Valor depreciação (20%)
B14: 1 | C14: Notebook | D14: 1 | E14: 1979.1 | F14: 1563.08 | G14: 1935.12 | H14: =AVERAGE(E14:G14) -> 1825.766667 | I14: =H14*80% -> 1460.613333 | J14: =I14*20% -> 292.1226667
B15: 2 | C15: Mouse | D15: 2 | E15: 7.9 | F15: 26.32 | G15: 7.99 | H15: =AVERAGE(E15:G15) -> 14.07 | I15: =H15*80% -> 11.256 | J15: =I15*20% -> 2.2512
B16: 3 | C16: Pad Mouse | D16: 2 | E16: 11.99 | F16: 10.99 | G16: 13.44 | H16: =AVERAGE(E16:G16) -> 12.14 | I16: =H16*80% -> 9.712 | J16: =I16*20% -> 1.9424
I17: Valor Total/ano | J17: =SUM(J14:J16) -> 296.3162667
I18: Valor Total/mês | J18: =J17/12 -> 24.69302222
